[Event "Rapid della Domenica"]
[Site "Chess.com"]
[Date "2020.04.26"]
[Round "2"]
[White "pedrak"]
[Black "MarcoCiva"]
[Result "1-0"]
[WhiteElo "1708"]
[BlackElo "1490"]
[TimeControl "720+3"]
[EndTime "6:32:08 PDT"]
[Termination "pedrak ha vinto per abbandono"]

1. d4 {[%clk 0:12:02.9]} 1... Nf6 {[%clk 0:11:58.6]} 2. Nf3 {[%clk 0:12:03.7]}
2... e6 {[%clk 0:11:55.7]} 3. Bf4 {[%clk 0:12:03.9]} 3... d5 {[%clk 0:11:44]} 4.
e3 {[%clk 0:12:02.4]} 4... Bd6 {[%clk 0:11:41.5]} 5. Bg3 {[%clk 0:12:02.9]} 5...
O-O {[%clk 0:11:39.3]} 6. Nbd2 {[%clk 0:12:03.7]} 6... Bxg3 {[%clk 0:11:35.2]}
7. hxg3 {[%clk 0:12:04.6]} 7... b6 {[%clk 0:11:35.6]} 8. Bd3 {[%clk 0:12:05.1]}
8... Ba6 {[%clk 0:11:20.3]} 9. Qe2 {[%clk 0:12:04.7]} 9... Bxd3 {[%clk
0:11:17.8]} 10. Qxd3 {[%clk 0:12:05.9]} 10... Nc6 {[%clk 0:11:16]} 11. c3 {[%clk
0:12:03.4]} 11... Qe7 {[%clk 0:10:58.8]} 12. Ne5 {[%clk 0:12:00.1]} 12... g6
{[%clk 0:10:27.1]} 13. Nxc6 {[%clk 0:11:52.4]} 13... Qd7 {[%clk 0:09:58.3]} 14.
Ne5 {[%clk 0:11:52.7]} 14... Qa4 {[%clk 0:09:54.1]} 15. g4 {[%clk 0:11:43.9]}
15... c5 {[%clk 0:09:51.4]} 16. g5 {[%clk 0:11:39.6]} 16... c4 {[%clk 0:09:50]}
17. Qe2 {[%clk 0:11:35.8]} 17... Nd7 {[%clk 0:09:48]} 18. f4 {[%clk 0:11:23.8]}
18... Nxe5 {[%clk 0:09:45.9]} 19. fxe5 {[%clk 0:11:24.3]} 19... Rae8 {[%clk
0:09:42.6]} 20. g4 {[%clk 0:11:20.2]} 20... b5 {[%clk 0:09:18.6]} 21. Qh2 {[%clk
0:11:19.9]} 21... h5 {[%clk 0:09:14.3]} 22. gxh5 {[%clk 0:11:18.9]} 22... Kg7
{[%clk 0:08:51.8]} 23. Qf2 {[%clk 0:11:11.8]} 23... f6 {[%clk 0:08:43.2]} 24.
gxf6+ {[%clk 0:11:12.5]} 24... Kf7 {[%clk 0:08:44.9]} 25. hxg6+ {[%clk
0:11:13.8]} 25... Kg8 {[%clk 0:08:42.4]} 26. Qh4 {[%clk 0:11:12.9]} 1-0

[Event "Rapid della Domenica"]
[Site "Chess.com"]
[Date "2020.04.26"]
[Round "2"]
[White "sergiodone"]
[Black "SanSecondoPR"]
[Result "1-0"]
[WhiteElo "1519"]
[BlackElo "1255"]
[TimeControl "720+3"]
[EndTime "6:39:05 PDT"]
[Termination "sergiodone ha vinto per scaccomatto"]

1. e4 {[%clk 0:11:53.4]} 1... d5 {[%clk 0:11:33.4]} 2. exd5 {[%clk 0:11:51.2]}
2... Nf6 {[%clk 0:11:33.3]} 3. d4 {[%clk 0:11:51.3]} 3... Qxd5 {[%clk
0:11:33.7]} 4. c4 {[%clk 0:11:35.4]} 4... Qe4+ {[%clk 0:11:30]} 5. Ne2 {[%clk
0:11:30.3]} 5... e5 {[%clk 0:11:11.2]} 6. dxe5 {[%clk 0:11:18.8]} 6... Qxe5
{[%clk 0:11:09.9]} 7. Nc3 {[%clk 0:11:19.2]} 7... Bb4 {[%clk 0:11:08.8]} 8. Be3
{[%clk 0:11:18.2]} 8... O-O {[%clk 0:11:05.8]} 9. Qb3 {[%clk 0:11:12.3]} 9...
Nc6 {[%clk 0:11:04.9]} 10. a3 {[%clk 0:10:48.6]} 10... Ba5 {[%clk 0:10:55.7]}
11. O-O-O {[%clk 0:10:45]} 11... Bb6 {[%clk 0:10:52.5]} 12. Nd5 {[%clk
0:10:08.6]} 12... Bxe3+ {[%clk 0:10:32.9]} 13. fxe3 {[%clk 0:10:05]} 13... Nd7
{[%clk 0:10:09.4]} 14. Nef4 {[%clk 0:09:47.2]} 14... Nc5 {[%clk 0:10:00.2]} 15.
Qc3 {[%clk 0:09:36.4]} 15... Qg5 {[%clk 0:09:34.4]} 16. h4 {[%clk 0:09:26.7]}
16... Qh6 {[%clk 0:09:09]} 17. Qc2 {[%clk 0:08:46.1]} 17... Be6 {[%clk
0:08:33.9]} 18. h5 {[%clk 0:08:19.6]} 18... Bg4 {[%clk 0:08:24.9]} 19. Be2
{[%clk 0:08:12.6]} 19... Bxe2 {[%clk 0:08:22.1]} 20. Qxe2 {[%clk 0:08:06.6]}
20... Nb3+ {[%clk 0:08:09.3]} 21. Kb1 {[%clk 0:07:58.6]} 21... Qg5 {[%clk
0:07:52.9]} 22. Qd3 {[%clk 0:07:49.9]} 22... Nca5 {[%clk 0:07:43.1]} 23. h6
{[%clk 0:07:24.1]} 23... Nc5 {[%clk 0:07:25]} 24. Qc2 {[%clk 0:07:14.4]} 24...
Qe5 {[%clk 0:07:00.1]} 25. hxg7 {[%clk 0:07:12.8]} 25... Qxg7 {[%clk 0:06:57]}
26. Nf6+ {[%clk 0:06:58.2]} 26... Qxf6 {[%clk 0:06:05.3]} 27. Qxh7# {[%clk
0:06:55.1]} 1-0

[Event "Rapid della Domenica"]
[Site "Chess.com"]
[Date "2020.04.26"]
[Round "2"]
[White "Carbon"]
[Black "crippo"]
[Result "1-0"]
[WhiteElo "1798"]
[BlackElo "1542"]
[TimeControl "720+3"]
[EndTime "6:41:28 PDT"]
[Termination "Carbon ha vinto per abbandono"]

1. e4 {[%clk 0:12:01.6]} 1... e5 {[%clk 0:12:00.1]} 2. Nf3 {[%clk 0:12:03]} 2...
Nc6 {[%clk 0:12:00.9]} 3. Bc4 {[%clk 0:11:59.8]} 3... Be7 {[%clk 0:12:02]} 4.
Nc3 {[%clk 0:11:56.7]} 4... Nf6 {[%clk 0:12:01.8]} 5. d4 {[%clk 0:11:53.3]} 5...
exd4 {[%clk 0:12:00.3]} 6. Nxd4 {[%clk 0:11:55.2]} 6... Nxd4 {[%clk 0:12:01.6]}
7. Qxd4 {[%clk 0:11:55.5]} 7... d6 {[%clk 0:12:03.8]} 8. O-O {[%clk 0:11:44.8]}
8... O-O {[%clk 0:12:05]} 9. Bg5 {[%clk 0:11:28.7]} 9... Ng4 {[%clk 0:12:05]}
10. Bxe7 {[%clk 0:10:59.3]} 10... Qxe7 {[%clk 0:12:06.1]} 11. f4 {[%clk
0:10:39.6]} 11... Be6 {[%clk 0:11:54.3]} 12. Be2 {[%clk 0:10:24.1]} 12... c5
{[%clk 0:11:45.9]} 13. Qd2 {[%clk 0:10:21.5]} 13... f5 {[%clk 0:11:39]} 14. Bxg4
{[%clk 0:09:37.6]} 14... fxg4 {[%clk 0:11:39.7]} 15. f5 {[%clk 0:09:35.1]} 15...
Bc4 {[%clk 0:11:33.4]} 16. Rfe1 {[%clk 0:09:16.7]} 16... Qe5 {[%clk 0:11:33.5]}
17. Rad1 {[%clk 0:09:04.7]} 17... Rf6 {[%clk 0:11:24.2]} 18. b3 {[%clk
0:08:15.2]} 18... Bf7 {[%clk 0:11:17.1]} 19. Nd5 {[%clk 0:08:07.5]} 19... Rh6
{[%clk 0:11:16.7]} 20. Qf4 {[%clk 0:08:03.4]} 20... Bxd5 {[%clk 0:09:09.6]} 21.
Qxe5 {[%clk 0:08:02]} 21... dxe5 {[%clk 0:09:10.1]} 22. Rxd5 {[%clk 0:08:03]}
22... Re8 {[%clk 0:09:03.3]} 23. Rxc5 {[%clk 0:08:02.4]} 23... Rd6 {[%clk
0:08:55.7]} 24. Kf2 {[%clk 0:07:53]} 24... h5 {[%clk 0:08:55.5]} 25. Rc7 {[%clk
0:07:48.7]} 25... h4 {[%clk 0:08:38.1]} 26. Rxb7 {[%clk 0:07:33.9]} 26... Rc8
{[%clk 0:08:38.5]} 27. c4 {[%clk 0:07:29.3]} 27... Rd2+ {[%clk 0:08:29.7]} 28.
Re2 {[%clk 0:07:30.8]} 28... Rcd8 {[%clk 0:08:10.3]} 29. g3 {[%clk 0:06:56.4]}
29... Rxe2+ {[%clk 0:07:57.4]} 30. Kxe2 {[%clk 0:06:57]} 30... hxg3 {[%clk
0:07:59.5]} 31. hxg3 {[%clk 0:06:57]} 31... Rd4 {[%clk 0:08:00.4]} 32. Ke3
{[%clk 0:06:49.6]} 32... Rd1 {[%clk 0:08:00.6]} 33. c5 {[%clk 0:06:37.7]} 33...
Re1+ {[%clk 0:07:50]} 34. Kf2 {[%clk 0:06:36.3]} 34... Rc1 {[%clk 0:07:44.4]}
35. b4 {[%clk 0:06:36.9]} 35... Rc2+ {[%clk 0:07:45.2]} 36. Ke3 {[%clk
0:06:34.3]} 36... Rxa2 {[%clk 0:07:42.7]} 37. c6 {[%clk 0:06:33.6]} 37... Rc2
{[%clk 0:07:42.7]} 38. b5 {[%clk 0:06:33.2]} 38... Kf8 {[%clk 0:07:08.2]} 39.
Kd3 {[%clk 0:06:31.7]} 39... Rc5 {[%clk 0:07:02.4]} 40. c7 {[%clk 0:06:19.7]}
40... Ke8 {[%clk 0:06:59.7]} 41. Rxa7 {[%clk 0:06:08.2]} 41... Kd7 {[%clk
0:06:50.2]} 42. b6 {[%clk 0:06:08]} 42... Rb5 {[%clk 0:06:44.1]} 43. Ra8 {[%clk
0:06:04.4]} 43... Rc5 {[%clk 0:06:27.7]} 44. Rd8+ {[%clk 0:06:00]} 1-0

[Event "Rapid della Domenica"]
[Site "Chess.com"]
[Date "2020.04.26"]
[Round "2"]
[White "Lavolpeneldeserto"]
[Black "caramante"]
[Result "0-1"]
[WhiteElo "725"]
[BlackElo "1600"]
[TimeControl "720+3"]
[EndTime "6:42:05 PDT"]
[Termination "caramante ha vinto per scaccomatto"]

1. d4 {[%clk 0:12:02.9]} 1... Nf6 {[%clk 0:12:00.5]} 2. Bf4 {[%clk 0:11:58.9]}
2... g6 {[%clk 0:12:02.1]} 3. Nc3 {[%clk 0:11:56.7]} 3... d6 {[%clk 0:12:04.1]}
4. e3 {[%clk 0:11:53.2]} 4... Bg7 {[%clk 0:12:05.7]} 5. Nf3 {[%clk 0:11:53]}
5... O-O {[%clk 0:12:07.4]} 6. Bd3 {[%clk 0:11:45.3]} 6... c6 {[%clk 0:12:09.3]}
7. a3 {[%clk 0:11:40.8]} 7... Nbd7 {[%clk 0:12:10.8]} 8. O-O {[%clk 0:11:41.5]}
8... Re8 {[%clk 0:12:11.1]} 9. e4 {[%clk 0:11:16.2]} 9... Nh5 {[%clk 0:12:07.7]}
10. Be3 {[%clk 0:11:13.5]} 10... e5 {[%clk 0:12:06]} 11. dxe5 {[%clk 0:10:28.1]}
11... Nxe5 {[%clk 0:12:01.5]} 12. Nxe5 {[%clk 0:10:13.7]} 12... dxe5 {[%clk
0:12:00.5]} 13. g3 {[%clk 0:10:06.6]} 13... Qc7 {[%clk 0:12:00.2]} 14. Qd2
{[%clk 0:09:49.9]} 14... Nf6 {[%clk 0:11:59.2]} 15. Bh6 {[%clk 0:09:30.4]} 15...
Be6 {[%clk 0:11:56.8]} 16. Bxg7 {[%clk 0:08:30.8]} 16... Kxg7 {[%clk 0:11:56.5]}
17. f4 {[%clk 0:08:18.8]} 17... exf4 {[%clk 0:11:39.2]} 18. Rxf4 {[%clk
0:08:05.9]} 18... Rad8 {[%clk 0:11:33.2]} 19. Raf1 {[%clk 0:06:58.3]} 19... Nh5
{[%clk 0:11:11.1]} 20. Rh4 {[%clk 0:06:18.2]} 20... Qe7 {[%clk 0:10:04.5]} 21.
Be2 {[%clk 0:05:29]} 21... Rxd2 {[%clk 0:09:49.9]} 22. Bxh5 {[%clk 0:04:09.8]}
22... gxh5 {[%clk 0:09:47.3]} 23. Rhf4 {[%clk 0:04:08.1]} 23... Rxc2 {[%clk
0:09:41.3]} 24. R1f2 {[%clk 0:02:27.9]} 24... Rxf2 {[%clk 0:09:27.6]} 25. Kxf2
{[%clk 0:02:24.9]} 25... Qc5+ {[%clk 0:09:27.3]} 26. Ke1 {[%clk 0:02:04.5]}
26... Qg1+ {[%clk 0:09:23.2]} 27. Rf1 {[%clk 0:02:01.7]} 27... Qxh2 {[%clk
0:09:24.2]} 28. Ne2 {[%clk 0:01:51.7]} 28... Bc4 {[%clk 0:09:24.3]} 29. Rf2
{[%clk 0:01:46.3]} 29... Qh1+ {[%clk 0:09:18.2]} 30. Rf1 {[%clk 0:01:46.4]}
30... Qxe4 {[%clk 0:09:19]} 31. Rf2 {[%clk 0:01:37]} 31... Rd8 {[%clk
0:09:19.9]} 32. Kf1 {[%clk 0:01:23.8]} 32... Qh1# {[%clk 0:09:16.3]} 0-1

[Event "Rapid della Domenica"]
[Site "Chess.com"]
[Date "2020.04.26"]
[Round "2"]
[White "toninoiuorio"]
[Black "bellapero"]
[Result "1-0"]
[WhiteElo "1375"]
[BlackElo "1367"]
[TimeControl "720+3"]
[EndTime "6:44:52 PDT"]
[Termination "toninoiuorio ha vinto per scaccomatto"]

1. d4 {[%clk 0:12:02.9]} 1... d5 {[%clk 0:11:59.7]} 2. c4 {[%clk 0:12:04.6]}
2... e6 {[%clk 0:11:59.7]} 3. Nc3 {[%clk 0:12:06.5]} 3... Nc6 {[%clk 0:11:53.4]}
4. e3 {[%clk 0:12:03.1]} 4... Nf6 {[%clk 0:11:50.7]} 5. Nf3 {[%clk 0:12:04.7]}
5... g6 {[%clk 0:11:38.4]} 6. Bd3 {[%clk 0:12:06.1]} 6... Bg7 {[%clk 0:11:33]}
7. O-O {[%clk 0:12:07.5]} 7... O-O {[%clk 0:11:33.8]} 8. Qe2 {[%clk 0:12:09.5]}
8... Nb4 {[%clk 0:10:48.5]} 9. Bb1 {[%clk 0:12:09.8]} 9... Ne4 {[%clk
0:10:13.1]} 10. Nxe4 {[%clk 0:12:01.3]} 10... dxe4 {[%clk 0:10:12.7]} 11. Bxe4
{[%clk 0:12:01.2]} 11... a5 {[%clk 0:09:43.9]} 12. a3 {[%clk 0:12:02.6]} 12...
Nc6 {[%clk 0:09:42.8]} 13. Rd1 {[%clk 0:11:58.9]} 13... b6 {[%clk 0:09:16]} 14.
b3 {[%clk 0:11:59.5]} 14... Ba6 {[%clk 0:09:08.5]} 15. Bb2 {[%clk 0:11:56.7]}
15... Qd7 {[%clk 0:08:39.6]} 16. Rac1 {[%clk 0:11:54.9]} 16... f5 {[%clk
0:08:29.9]} 17. Bd3 {[%clk 0:11:53.8]} 17... Qd6 {[%clk 0:08:01]} 18. d5 {[%clk
0:11:09.7]} 18... Bxb2 {[%clk 0:07:44.4]} 19. Qxb2 {[%clk 0:11:07.8]} 19... exd5
{[%clk 0:07:23.1]} 20. cxd5 {[%clk 0:11:07.6]} 20... Bxd3 {[%clk 0:07:18.4]} 21.
Rxd3 {[%clk 0:10:56.3]} 21... Ne7 {[%clk 0:06:21.7]} 22. Rcd1 {[%clk 0:10:46.4]}
22... Rfd8 {[%clk 0:05:38.9]} 23. b4 {[%clk 0:10:29.1]} 23... axb4 {[%clk
0:05:28.9]} 24. axb4 {[%clk 0:10:30.9]} 24... Ra4 {[%clk 0:05:24.3]} 25. Rd4
{[%clk 0:10:32]} 25... c5 {[%clk 0:05:05.6]} 26. dxc6 {[%clk 0:10:27.4]} 26...
Nd5 {[%clk 0:03:28.3]} 27. Qb3 {[%clk 0:09:32.3]} 27... Rxb4 {[%clk 0:03:14.8]}
28. Rxb4 {[%clk 0:06:29.5]} 28... Qxb4 {[%clk 0:02:37.9]} 29. Qxb4 {[%clk
0:06:28.6]} 29... Nxb4 {[%clk 0:02:38.5]} 30. Rxd8+ {[%clk 0:06:30.1]} 30... Kf7
{[%clk 0:02:37.4]} 31. c7 {[%clk 0:06:32]} 31... Nc6 {[%clk 0:02:31.9]} 32. c8=Q
{[%clk 0:06:31.4]} 32... Nxd8 {[%clk 0:02:33.4]} 33. Qxd8 {[%clk 0:06:33.2]}
33... Ke6 {[%clk 0:02:34]} 34. Qxb6+ {[%clk 0:06:34.7]} 34... Kd5 {[%clk
0:02:32.2]} 35. Qb7+ {[%clk 0:06:32.9]} 35... Kd6 {[%clk 0:02:32.8]} 36. Qxh7
{[%clk 0:06:35.2]} 36... Ke6 {[%clk 0:02:33.8]} 37. Qxg6+ {[%clk 0:06:36.8]}
37... Ke7 {[%clk 0:02:35.4]} 38. Qxf5 {[%clk 0:06:38.4]} 38... Kd6 {[%clk
0:02:37.3]} 39. Kf1 {[%clk 0:06:40.5]} 39... Kc6 {[%clk 0:02:38.7]} 40. Ke2
{[%clk 0:06:42.8]} 40... Kd6 {[%clk 0:02:40.3]} 41. Qe5+ {[%clk 0:06:43.8]}
41... Kc6 {[%clk 0:02:41.3]} 42. Kd3 {[%clk 0:06:46]} 42... Kd7 {[%clk 0:02:43]}
43. g4 {[%clk 0:06:47.1]} 43... Kc6 {[%clk 0:02:44]} 44. Kd4 {[%clk 0:06:47.2]}
44... Kd7 {[%clk 0:02:45.7]} 45. e4 {[%clk 0:06:47.3]} 45... Kd8 {[%clk
0:02:46.1]} 46. Qe6 {[%clk 0:06:45.1]} 46... Kc7 {[%clk 0:02:45.7]} 47. Kd5
{[%clk 0:06:47.1]} 47... Kd8 {[%clk 0:02:47.2]} 48. Qf7 {[%clk 0:06:48]} 48...
Kc8 {[%clk 0:02:48.6]} 49. Kd6 {[%clk 0:06:50.1]} 49... Kd8 {[%clk 0:02:49.3]}
50. Qd7# {[%clk 0:06:50.7]} 1-0

[Event "Rapid della Domenica"]
[Site "Chess.com"]
[Date "2020.04.26"]
[Round "2"]
[White "sirmale49"]
[Black "GB86_CHESS"]
[Result "0-1"]
[WhiteElo "1401"]
[BlackElo "1691"]
[TimeControl "720+3"]
[EndTime "6:49:41 PDT"]
[Termination "GB86_CHESS ha vinto per abbandono"]

1. e4 {[%clk 0:11:52.2]} 1... c5 {[%clk 0:11:51.3]} 2. f4 {[%clk 0:11:44.3]}
2... d5 {[%clk 0:11:50.3]} 3. e5 {[%clk 0:11:45.3]} 3... Bf5 {[%clk 0:11:50.6]}
4. g4 {[%clk 0:11:31.9]} 4... Be4 {[%clk 0:11:50.2]} 5. Nf3 {[%clk 0:11:31.4]}
5... e6 {[%clk 0:11:47]} 6. d3 {[%clk 0:11:31.4]} 6... Bxf3 {[%clk 0:11:44.4]}
7. Qxf3 {[%clk 0:11:30.8]} 7... Nc6 {[%clk 0:11:43.9]} 8. c3 {[%clk 0:11:29.4]}
8... Qh4+ {[%clk 0:11:44.9]} 9. Qg3 {[%clk 0:11:28.8]} 9... Be7 {[%clk
0:11:45.3]} 10. Be3 {[%clk 0:11:23.7]} 10... Nh6 {[%clk 0:11:35.7]} 11. Be2
{[%clk 0:11:14]} 11... d4 {[%clk 0:11:12.3]} 12. Bf2 {[%clk 0:11:09.7]} 12...
Qxg3 {[%clk 0:11:13.2]} 13. Bxg3 {[%clk 0:11:08.9]} 13... f5 {[%clk 0:11:14.2]}
14. g5 {[%clk 0:11:07.3]} 14... Nf7 {[%clk 0:11:14.4]} 15. h4 {[%clk 0:11:05.5]}
15... O-O-O {[%clk 0:11:10.2]} 16. Bf3 {[%clk 0:11:01.9]} 16... Kc7 {[%clk
0:11:00.6]} 17. c4 {[%clk 0:11:03.1]} 17... Nb4 {[%clk 0:10:58.1]} 18. Kd2
{[%clk 0:11:02.2]} 18... Rb8 {[%clk 0:10:46.8]} 19. a3 {[%clk 0:11:03.2]} 19...
Nc6 {[%clk 0:10:47.3]} 20. Bd1 {[%clk 0:10:52.6]} 20... b5 {[%clk 0:10:44.6]}
21. Bf3 {[%clk 0:10:00.3]} 21... bxc4 {[%clk 0:10:34.1]} 22. Bxc6 {[%clk
0:09:59.3]} 22... Kxc6 {[%clk 0:10:34.7]} 23. dxc4 {[%clk 0:09:54.4]} 23...
Rxb2+ {[%clk 0:10:35.1]} 24. Kc1 {[%clk 0:09:52]} 24... Rb3 {[%clk 0:10:30.8]}
25. Rg1 {[%clk 0:09:45.9]} 25... Rhb8 {[%clk 0:10:30.9]} 26. h5 {[%clk
0:09:02.3]} 26... Nd8 {[%clk 0:10:25.6]} 27. Nd2 {[%clk 0:08:42.9]} 27... Rc3+
{[%clk 0:10:21.4]} 28. Kd1 {[%clk 0:08:37.5]} 28... Rb2 {[%clk 0:09:56]} 29. Ke2
{[%clk 0:08:28.7]} 29... Nb7 {[%clk 0:09:51.4]} 30. Rab1 {[%clk 0:08:22.7]}
30... Rcc2 {[%clk 0:09:49.5]} 31. Rxb2 {[%clk 0:08:21.3]} 31... Rxb2 {[%clk
0:09:51.4]} 32. Kd3 {[%clk 0:08:14.3]} 32... Na5 {[%clk 0:09:47.8]} 33. Rb1
{[%clk 0:08:11.8]} 33... Ra2 {[%clk 0:09:40.9]} 34. Rb5 {[%clk 0:07:43.3]} 34...
Rxa3+ {[%clk 0:09:31]} 35. Ke2 {[%clk 0:07:43.5]} 35... Bd8 {[%clk 0:07:57.6]}
36. Be1 {[%clk 0:07:19.4]} 36... Re3+ {[%clk 0:07:55.4]} 37. Kd1 {[%clk
0:07:11.3]} 37... Rh3 {[%clk 0:05:54.7]} 38. h6 {[%clk 0:06:15.3]} 38... gxh6
{[%clk 0:05:52.1]} 39. gxh6 {[%clk 0:06:14.1]} 39... Nxc4 {[%clk 0:05:42]} 40.
Rb8 {[%clk 0:05:22.2]} 40... Nxd2 {[%clk 0:05:36.9]} 41. Rxd8 {[%clk 0:05:16.4]}
41... Nf3 {[%clk 0:05:36]} 42. Rd6+ {[%clk 0:05:05.7]} 42... Kb5 {[%clk
0:05:35.2]} 43. Rxe6 {[%clk 0:04:44.4]} 43... Rh1 {[%clk 0:05:36.6]} 44. Ke2
{[%clk 0:04:36.2]} 44... Nxe1 {[%clk 0:05:29.1]} 45. Rf6 {[%clk 0:04:34]} 45...
c4 {[%clk 0:05:26.7]} 46. Rxf5 {[%clk 0:04:31.2]} 46... c3 {[%clk 0:05:08.3]}
47. e6+ {[%clk 0:04:31.3]} 47... Kc4 {[%clk 0:05:08.3]} 48. e7 {[%clk
0:04:30.9]} 48... d3+ {[%clk 0:05:10.4]} 49. Ke3 {[%clk 0:04:27.9]} 49... Nc2+
{[%clk 0:04:55.6]} 50. Kf2 {[%clk 0:04:22]} 50... Re1 {[%clk 0:04:24.4]} 51. Re5
{[%clk 0:04:21.2]} 51... Rxe5 {[%clk 0:04:13]} 52. fxe5 {[%clk 0:04:20.6]} 52...
d2 {[%clk 0:04:15.2]} 53. e8=Q {[%clk 0:04:21.7]} 53... d1=Q {[%clk 0:04:16]}
54. Qc6+ {[%clk 0:04:21.3]} 54... Kb3 {[%clk 0:04:11.9]} 55. Qe6+ {[%clk
0:04:01.3]} 55... Kb2 {[%clk 0:04:09.4]} 56. Qd6 {[%clk 0:03:46.1]} 56... Qd2+
{[%clk 0:03:54.7]} 57. Qxd2 {[%clk 0:03:44.1]} 57... cxd2 {[%clk 0:03:56.7]} 58.
Ke2 {[%clk 0:03:44]} 58... Kc1 {[%clk 0:03:58.3]} 59. Kf3 {[%clk 0:03:18.1]}
59... d1=Q+ {[%clk 0:03:57.1]} 60. Kf4 {[%clk 0:03:19.7]} 60... Qd2+ {[%clk
0:03:55.7]} 61. Kf5 {[%clk 0:03:21.2]} 61... Qxh6 {[%clk 0:03:57.3]} 62. e6
{[%clk 0:03:22.1]} 62... Qf8+ {[%clk 0:03:58.5]} 63. Ke5 {[%clk 0:03:20.5]}
63... Kd2 {[%clk 0:03:56.2]} 0-1

[Event "Rapid della Domenica"]
[Site "Chess.com"]
[Date "2020.04.26"]
[Round "2"]
[White "giulioscaglione"]
[Black "markk000"]
[Result "0-1"]
[WhiteElo "1271"]
[BlackElo "1529"]
[TimeControl "720+3"]
[EndTime "6:49:51 PDT"]
[Termination "markk000 ha vinto per abbandono"]

1. b3 {[%clk 0:12:02.9]} 1... Nf6 {[%clk 0:11:56.4]} 2. Bb2 {[%clk 0:12:04]}
2... e6 {[%clk 0:11:58.4]} 3. e3 {[%clk 0:12:05.4]} 3... b6 {[%clk 0:12:00.6]}
4. Be2 {[%clk 0:12:02.1]} 4... Bb7 {[%clk 0:12:02]} 5. Bf3 {[%clk 0:12:03.7]}
5... d5 {[%clk 0:12:00.6]} 6. Ne2 {[%clk 0:12:00.3]} 6... Be7 {[%clk 0:11:55.8]}
7. O-O {[%clk 0:11:59.9]} 7... O-O {[%clk 0:11:57.8]} 8. d3 {[%clk 0:11:59.3]}
8... c5 {[%clk 0:11:59.7]} 9. Nd2 {[%clk 0:11:55.2]} 9... Qc7 {[%clk 0:11:59.3]}
10. Ng3 {[%clk 0:11:48]} 10... Bd6 {[%clk 0:11:53.3]} 11. Bxf6 {[%clk
0:11:34.7]} 11... gxf6 {[%clk 0:11:51.7]} 12. c3 {[%clk 0:10:08.9]} 12... Nd7
{[%clk 0:11:48]} 13. e4 {[%clk 0:09:57.4]} 13... Bxg3 {[%clk 0:11:24.9]} 14.
fxg3 {[%clk 0:09:56.2]} 14... Ne5 {[%clk 0:11:23.7]} 15. Qe2 {[%clk 0:09:39.7]}
15... Rfe8 {[%clk 0:10:40.5]} 16. d4 {[%clk 0:09:14]} 16... cxd4 {[%clk
0:10:08]} 17. cxd4 {[%clk 0:09:14.2]} 17... Nc6 {[%clk 0:10:07.9]} 18. Rac1
{[%clk 0:09:04.3]} 18... Qd6 {[%clk 0:10:03.2]} 19. Qd3 {[%clk 0:08:39.6]} 19...
dxe4 {[%clk 0:09:57.7]} 20. Bxe4 {[%clk 0:08:33.1]} 20... f5 {[%clk 0:09:40.4]}
21. Bxc6 {[%clk 0:08:15.7]} 21... Bxc6 {[%clk 0:09:42.1]} 22. Nc4 {[%clk
0:08:04.1]} 22... Qd5 {[%clk 0:09:37.5]} 23. Ne3 {[%clk 0:07:36.5]} 23... Qd7
{[%clk 0:09:30.5]} 24. Nc4 {[%clk 0:07:21.2]} 24... Bb5 {[%clk 0:09:24.9]} 25.
a4 {[%clk 0:07:04.8]} 25... Ba6 {[%clk 0:09:12.1]} 26. Rfe1 {[%clk 0:06:36.3]}
26... Red8 {[%clk 0:09:04.9]} 27. Rcd1 {[%clk 0:06:14.3]} 27... Qd5 {[%clk
0:08:17]} 28. Qe3 {[%clk 0:05:56]} 28... Bb7 {[%clk 0:08:09.9]} 29. Qg5+ {[%clk
0:05:18.5]} 29... Kf8 {[%clk 0:08:01.3]} 30. Qh6+ {[%clk 0:05:05.2]} 30... Ke8
{[%clk 0:07:29.1]} 31. Rd2 {[%clk 0:04:49.2]} 31... Qc6 {[%clk 0:06:26.5]} 32.
Qf6 {[%clk 0:04:18.3]} 32... Rac8 {[%clk 0:05:42.9]} 33. Ne5 {[%clk 0:04:13.6]}
33... Qc7 {[%clk 0:05:34.9]} 34. Rc2 {[%clk 0:03:43.4]} 34... Qe7 {[%clk
0:05:27.2]} 35. Qh8+ {[%clk 0:03:32.7]} 35... Qf8 {[%clk 0:05:28.1]} 36. Qxf8+
{[%clk 0:02:41.9]} 36... Kxf8 {[%clk 0:05:31]} 37. Rxc8 {[%clk 0:02:43.6]} 37...
Rxc8 {[%clk 0:05:00.1]} 38. Nc4 {[%clk 0:02:23.5]} 38... Rd8 {[%clk 0:04:55.1]}
39. Rd1 {[%clk 0:02:22.1]} 39... Ke7 {[%clk 0:04:56.6]} 40. Ne5 {[%clk
0:02:17.7]} 40... f6 {[%clk 0:04:54.4]} 41. Nf3 {[%clk 0:02:18.4]} 41... e5
{[%clk 0:04:50.8]} 42. Kf2 {[%clk 0:02:03.7]} 42... Bxf3 {[%clk 0:04:50.7]} 43.
gxf3 {[%clk 0:02:02.5]} 43... Rxd4 {[%clk 0:04:52.8]} 44. Rxd4 {[%clk
0:02:03.6]} 44... exd4 {[%clk 0:04:55.7]} 45. f4 {[%clk 0:02:05.4]} 45... Kd6
{[%clk 0:04:57.2]} 46. Ke2 {[%clk 0:02:07.7]} 46... Kd5 {[%clk 0:04:58.7]} 47.
Kd3 {[%clk 0:02:08.2]} 47... a5 {[%clk 0:05:00.5]} 48. h3 {[%clk 0:01:44.4]}
48... h5 {[%clk 0:05:01.6]} 49. h4 {[%clk 0:01:42.7]} 49... Kc5 {[%clk
0:05:02.3]} 50. Kc2 {[%clk 0:01:39]} 50... Kb4 {[%clk 0:04:58.7]} 51. Kd3 {[%clk
0:01:40.6]} 51... Kc5 {[%clk 0:04:56.7]} 52. Kc2 {[%clk 0:01:39.6]} 52... b5
{[%clk 0:04:54.9]} 53. Kd3 {[%clk 0:01:27.4]} 53... bxa4 {[%clk 0:04:56.5]} 54.
bxa4 {[%clk 0:01:28.9]} 54... Kd5 {[%clk 0:04:57.5]} 55. Kc2 {[%clk 0:01:29.4]}
55... Kc4 {[%clk 0:04:59.3]} 56. Kd2 {[%clk 0:01:30.8]} 56... d3 {[%clk
0:05:01.5]} 57. Kd1 {[%clk 0:01:30.6]} 57... Kc3 {[%clk 0:05:00]} 58. Kc1 {[%clk
0:01:32.5]} 58... Kd4 {[%clk 0:04:46.8]} 59. Kd2 {[%clk 0:01:33.1]} 59... Ke4
{[%clk 0:04:48.4]} 60. Ke1 {[%clk 0:01:34.2]} 60... Ke3 {[%clk 0:04:50]} 61. Kd1
{[%clk 0:01:35.6]} 61... d2 {[%clk 0:04:52.3]} 62. Kc2 {[%clk 0:01:34.5]} 62...
Ke2 {[%clk 0:04:54.6]} 0-1